[Event "Titled Tuesday Blitz August 02 Early 2022"]
[White "Hakobyan, Aram"]
[Black "Luo, Terry"]
[WhiteFideId "13306677"]
[BlackFideId "30931045"]
[WhiteElo "2557"]
[BlackElo "2024"]
[Result "1-0"]
[Round "01"]
[TimeControl "180+1"]
[Date "2022.08.02"]
[WhiteClock "0:01:42"]
[BlackClock "0:02:10"]

1. e4 {[%clk 0:02:59]}  e5 {[%clk 0:02:59]} 2. Nf3 {[%clk 0:02:59]}  Nc6 {[%clk 0:02:56]} 3. Bb5 {[%clk 0:02:59]}  a6 {[%clk 0:02:55]} 4. Ba4 {[%clk 0:02:59]}  Nge7 {[%clk 0:02:56]} 5. O-O {[%clk 0:02:59]}  Ng6 {[%clk 0:02:56]} 6. c3 {[%clk 0:02:59]}  d6 {[%clk 0:02:57]} 7. d4 {[%clk 0:03:00]}  Bd7 {[%clk 0:02:57]} 8. Be3 {[%clk 0:02:59]}  Be7 {[%clk 0:02:58]} 9. Nbd2 {[%clk 0:03:00]}  h6 {[%clk 0:02:58]} 10. d5 {[%clk 0:03:00]}  Nb8 {[%clk 0:02:57]} 11. c4 {[%clk 0:03:00]}  Bg5 {[%clk 0:02:57]} 12. Nxg5 {[%clk 0:02:57]}  hxg5 {[%clk 0:02:58]} 13. c5 {[%clk 0:02:54]}  Qf6 {[%clk 0:02:53]} 14. cxd6 {[%clk 0:02:52]}  cxd6 {[%clk 0:02:52]} 15. Rc1 {[%clk 0:02:48]}  Bxa4 {[%clk 0:02:32]} 16. Qxa4+ {[%clk 0:02:46]}  Nd7 {[%clk 0:02:33]} 17. Rc7 {[%clk 0:02:40]}  b5 {[%clk 0:02:31]} 18. Qc2 {[%clk 0:02:40]}  Nf4 {[%clk 0:02:31]} 19. Re1 {[%clk 0:01:46]}  Ke7 {[%clk 0:02:14]} 20. Rxd7+ {[%clk 0:01:42]}  Kxd7 {[%clk 0:02:10]} 21. Qc6+ {[%clk 0:01:42]}  Ke7 {[%clk 0:02:10]} 22. Qb7+ {[%clk 0:01:42]} 1-0


[Site "https://www.chess.com"]

[Event "Titled Tuesday Blitz August 02 Early 2022"]
[White "Jeet, Jain"]
[Black "Salem, A.R. Saleh"]
[WhiteFideId "5073022"]
[BlackFideId "9301348"]
[WhiteElo "2055"]
[BlackElo "2679"]
[Result "1/2-1/2"]
[Round "01"]
[TimeControl "180+1"]
[Date "2022.08.02"]
[WhiteClock "0:00:21"]
[BlackClock "0:00:04"]

1. Nf3 {[%clk 0:02:58]}  d5 {[%clk 0:02:59]} 2. g3 {[%clk 0:02:58]}  c5 {[%clk 0:02:59]} 3. Bg2 {[%clk 0:02:58]}  Nf6 {[%clk 0:03:00]} 4. O-O {[%clk 0:02:59]}  e6 {[%clk 0:03:00]} 5. d3 {[%clk 0:02:59]}  Nc6 {[%clk 0:02:59]} 6. Nbd2 {[%clk 0:02:59]}  Be7 {[%clk 0:02:59]} 7. e4 {[%clk 0:03:00]}  O-O {[%clk 0:03:00]} 8. e5 {[%clk 0:02:57]}  Nd7 {[%clk 0:03:00]} 9. Re1 {[%clk 0:02:56]}  Qc7 {[%clk 0:03:00]} 10. Qe2 {[%clk 0:02:56]}  b5 {[%clk 0:03:01]} 11. h4 {[%clk 0:02:54]}  Bb7 {[%clk 0:03:01]} 12. Nf1 {[%clk 0:02:54]}  Rfc8 {[%clk 0:03:00]} 13. h5 {[%clk 0:02:54]}  h6 {[%clk 0:02:58]} 14. N1h2 {[%clk 0:02:52]}  Qd8 {[%clk 0:02:54]} 15. Ng4 {[%clk 0:02:51]}  Kh8 {[%clk 0:02:54]} 16. a4 {[%clk 0:02:48]}  bxa4 {[%clk 0:02:52]} 17. Rxa4 {[%clk 0:02:47]}  Nb4 {[%clk 0:02:38]} 18. c3 {[%clk 0:02:43]}  Nb6 {[%clk 0:02:38]} 19. Ra1 {[%clk 0:02:40]}  Nc6 {[%clk 0:02:38]} 20. Bf4 {[%clk 0:02:40]}  Bf8 {[%clk 0:02:36]} 21. Qd2 {[%clk 0:02:35]}  Ne7 {[%clk 0:02:32]} 22. Nh4 {[%clk 0:02:29]}  Ng8 {[%clk 0:02:23]} 23. Qe2 {[%clk 0:02:18]}  a5 {[%clk 0:02:22]} 24. b3 {[%clk 0:02:08]}  Ra7 {[%clk 0:02:19]} 25. Ra2 {[%clk 0:02:08]}  a4 {[%clk 0:02:17]} 26. bxa4 {[%clk 0:02:07]}  Nxa4 {[%clk 0:02:17]} 27. Qc2 {[%clk 0:02:06]}  Rca8 {[%clk 0:02:13]} 28. Rea1 {[%clk 0:02:06]}  Bc6 {[%clk 0:02:12]} 29. c4 {[%clk 0:01:58]}  Qd7 {[%clk 0:01:54]} 30. cxd5 {[%clk 0:01:54]}  Bxd5 {[%clk 0:01:39]} 31. Bxd5 {[%clk 0:01:51]}  exd5 {[%clk 0:01:40]} 32. Ne3 {[%clk 0:01:49]}  d4 {[%clk 0:01:36]} 33. Nc4 {[%clk 0:01:40]}  Nc3 {[%clk 0:01:36]} 34. Rxa7 {[%clk 0:01:39]}  Rxa7 {[%clk 0:01:36]} 35. Rxa7 {[%clk 0:01:35]}  Qxa7 {[%clk 0:01:37]} 36. Qb2 {[%clk 0:01:33]}  Ne7 {[%clk 0:01:28]} 37. Nd6 {[%clk 0:01:31]}  Ned5 {[%clk 0:01:25]} 38. Bd2 {[%clk 0:01:24]}  Kg8 {[%clk 0:00:55]} 39. Nhf5 {[%clk 0:01:23]}  Qb6 {[%clk 0:00:45]} 40. Qxb6 {[%clk 0:01:16]}  Nxb6 {[%clk 0:00:46]} 41. Kf1 {[%clk 0:01:01]}  Nba4 {[%clk 0:00:41]} 42. f4 {[%clk 0:00:57]}  Nb2 {[%clk 0:00:41]} 43. Bxc3 {[%clk 0:00:39]}  dxc3 {[%clk 0:00:42]} 44. Ke2 {[%clk 0:00:40]}  g6 {[%clk 0:00:31]} 45. hxg6 {[%clk 0:00:39]}  fxg6 {[%clk 0:00:32]} 46. Ne3 {[%clk 0:00:38]}  Bxd6 {[%clk 0:00:29]} 47. exd6 {[%clk 0:00:38]}  Kf7 {[%clk 0:00:29]} 48. Nd5 {[%clk 0:00:33]}  c2 {[%clk 0:00:29]} 49. Kd2 {[%clk 0:00:33]}  Nxd3 {[%clk 0:00:27]} 50. Kxc2 {[%clk 0:00:29]}  Nb4+ {[%clk 0:00:24]} 51. Nxb4 {[%clk 0:00:29]}  cxb4 {[%clk 0:00:25]} 52. Kb3 {[%clk 0:00:20]}  Ke6 {[%clk 0:00:25]} 53. d7 {[%clk 0:00:20]}  Kxd7 {[%clk 0:00:25]} 54. Kxb4 {[%clk 0:00:20]}  Ke6 {[%clk 0:00:25]} 55. Kc4 {[%clk 0:00:21]}  Kf5 {[%clk 0:00:25]} 56. Kd4 {[%clk 0:00:21]}  Kg4 {[%clk 0:00:25]} 57. Ke5 {[%clk 0:00:21]}  Kxg3 {[%clk 0:00:09]} 58. Kf6 {[%clk 0:00:20]}  Kxf4 {[%clk 0:00:03]} 59. Kxg6 {[%clk 0:00:20]}  Kg4 {[%clk 0:00:04]} 60. Kxh6 {[%clk 0:00:21]} 1/2-1/2


[Site "https://www.chess.com"]

[Event "Titled Tuesday Blitz August 02 Early 2022"]
[White "Laxman, R.R."]
[Black "Cnejev, Vladimir-Alexandru"]
[WhiteFideId "5005361"]
[BlackFideId "1260898"]
[WhiteElo "2361"]
[BlackElo "1951"]
[Result "1-0"]
[Round "01"]
[TimeControl "180+1"]
[Date "2022.08.02"]
[WhiteClock "0:01:44"]
[BlackClock "0:00:01"]

1. d4 {[%clk 0:03:00]}  d5 {[%clk 0:02:58]} 2. Nf3 {[%clk 0:03:00]}  Nf6 {[%clk 0:02:57]} 3. c4 {[%clk 0:03:01]}  e6 {[%clk 0:02:58]} 4. g3 {[%clk 0:03:01]}  Be7 {[%clk 0:02:56]} 5. Bg2 {[%clk 0:03:01]}  O-O {[%clk 0:02:57]} 6. O-O {[%clk 0:03:00]}  c6 {[%clk 0:02:57]} 7. Nbd2 {[%clk 0:02:59]}  b6 {[%clk 0:02:54]} 8. Qc2 {[%clk 0:02:58]}  Bb7 {[%clk 0:02:53]} 9. e4 {[%clk 0:02:58]}  Na6 {[%clk 0:02:53]} 10. a3 {[%clk 0:02:58]}  c5 {[%clk 0:02:53]} 11. e5 {[%clk 0:02:55]}  Nd7 {[%clk 0:02:50]} 12. cxd5 {[%clk 0:02:54]}  Bxd5 {[%clk 0:02:46]} 13. dxc5 {[%clk 0:02:43]}  bxc5 {[%clk 0:02:38]} 14. b3 {[%clk 0:02:42]}  Rb8 {[%clk 0:02:18]} 15. Bb2 {[%clk 0:02:42]}  Qb6 {[%clk 0:02:07]} 16. Rab1 {[%clk 0:02:32]}  Bxb3 {[%clk 0:02:01]} 17. Qd3 {[%clk 0:02:28]}  Bd5 {[%clk 0:01:43]} 18. Bc3 {[%clk 0:02:27]}  Qc6 {[%clk 0:01:39]} 19. Rbc1 {[%clk 0:02:25]}  Nc7 {[%clk 0:01:12]} 20. Ba5 {[%clk 0:02:21]}  Rfc8 {[%clk 0:01:00]} 21. Nd4 {[%clk 0:02:20]}  Qa6 {[%clk 0:00:38]} 22. Qxa6 {[%clk 0:02:20]}  Nxa6 {[%clk 0:00:39]} 23. Bxd5 {[%clk 0:02:21]}  exd5 {[%clk 0:00:39]} 24. Nf5 {[%clk 0:02:20]}  Bf8 {[%clk 0:00:40]} 25. Rfe1 {[%clk 0:02:17]}  g6 {[%clk 0:00:39]} 26. Nd6 {[%clk 0:02:16]}  Rc6 {[%clk 0:00:35]} 27. Rcd1 {[%clk 0:02:03]}  Bxd6 {[%clk 0:00:33]} 28. exd6 {[%clk 0:02:03]}  Rxd6 {[%clk 0:00:34]} 29. Ne4 {[%clk 0:02:03]}  Re6 {[%clk 0:00:32]} 30. Rxd5 {[%clk 0:02:03]}  Rxe4 {[%clk 0:00:17]} 31. Rxe4 {[%clk 0:01:57]}  Nf6 {[%clk 0:00:17]} 32. Rd6 {[%clk 0:01:53]}  Nxe4 {[%clk 0:00:17]} 33. Rxa6 {[%clk 0:01:54]}  Rb7 {[%clk 0:00:16]} 34. Rc6 {[%clk 0:01:53]}  h5 {[%clk 0:00:14]} 35. f3 {[%clk 0:01:53]}  Ng5 {[%clk 0:00:12]} 36. Bc3 {[%clk 0:01:52]}  Nxf3+ {[%clk 0:00:10]} 37. Kf2 {[%clk 0:01:52]}  Nd4 {[%clk 0:00:10]} 38. Rxc5 {[%clk 0:01:53]}  Rd7 {[%clk 0:00:10]} 39. Ke3 {[%clk 0:01:51]}  Ne6 {[%clk 0:00:08]} 40. Rc8+ {[%clk 0:01:51]}  Rd8 {[%clk 0:00:08]} 41. Rxd8+ {[%clk 0:01:49]}  Nxd8 {[%clk 0:00:09]} 42. Kd4 {[%clk 0:01:50]}  Kf8 {[%clk 0:00:08]} 43. Kc5 {[%clk 0:01:48]}  Ke7 {[%clk 0:00:09]} 44. Kb5 {[%clk 0:01:48]}  Kd7 {[%clk 0:00:08]} 45. a4 {[%clk 0:01:48]}  Nc6 {[%clk 0:00:08]} 46. a5 {[%clk 0:01:47]}  Kd6 {[%clk 0:00:06]} 47. Bf6 {[%clk 0:01:47]}  Kd7 {[%clk 0:00:04]} 48. a6 {[%clk 0:01:47]}  Kd6 {[%clk 0:00:04]} 49. h4 {[%clk 0:01:47]}  Kd5 {[%clk 0:00:03]} 50. Bg7 {[%clk 0:01:44]}  Kd6 {[%clk 0:00:03]} 51. Bf8+ {[%clk 0:01:44]}  Kd5 {[%clk 0:00:04]} 52. Bc5 {[%clk 0:01:45]}  f6 {[%clk 0:00:01]} 53. Bg1 {[%clk 0:01:45]}  g5 {[%clk 0:00:01]} 54. g4 {[%clk 0:01:44]} 1-0


[Site "https://www.chess.com"]

[Event "Titled Tuesday Blitz August 02 Early 2022"]
[White "Le, Tuan Minh"]
[Black "Cervantes Landeiro, Thalia"]
[WhiteFideId "12401153"]
[BlackFideId "3520498"]
[WhiteElo "2530"]
[BlackElo "2042"]
[Result "1-0"]
[Round "01"]
[TimeControl "180+1"]
[Date "2022.08.02"]
[WhiteClock "0:00:14"]
[BlackClock "0:00:04"]

1. d4 {[%clk 0:03:00]}  d5 {[%clk 0:02:59]} 2. Nf3 {[%clk 0:02:57]}  Nf6 {[%clk 0:02:58]} 3. Bf4 {[%clk 0:02:57]}  g6 {[%clk 0:02:58]} 4. e3 {[%clk 0:02:57]}  Bg7 {[%clk 0:02:58]} 5. c4 {[%clk 0:02:57]}  O-O {[%clk 0:02:56]} 6. Nc3 {[%clk 0:02:58]}  c5 {[%clk 0:02:51]} 7. Be2 {[%clk 0:02:46]}  cxd4 {[%clk 0:02:50]} 8. Nxd4 {[%clk 0:02:44]}  Nc6 {[%clk 0:02:38]} 9. Nxc6 {[%clk 0:02:39]}  bxc6 {[%clk 0:02:38]} 10. O-O {[%clk 0:02:39]}  Bf5 {[%clk 0:02:37]} 11. Qa4 {[%clk 0:02:33]}  Qb6 {[%clk 0:02:31]} 12. Qa3 {[%clk 0:02:16]}  Rfe8 {[%clk 0:02:24]} 13. cxd5 {[%clk 0:02:11]}  cxd5 {[%clk 0:02:22]} 14. Be5 {[%clk 0:02:06]}  e6 {[%clk 0:01:56]} 15. Rac1 {[%clk 0:01:53]}  Bf8 {[%clk 0:01:52]} 16. Qa4 {[%clk 0:01:50]}  Ne4 {[%clk 0:01:44]} 17. Nb5 {[%clk 0:01:37]}  Nc5 {[%clk 0:01:36]} 18. Qh4 {[%clk 0:01:05]}  Be7 {[%clk 0:01:23]} 19. Qd4 {[%clk 0:01:00]}  Rac8 {[%clk 0:01:01]} 20. b4 {[%clk 0:00:36]}  Nd7 {[%clk 0:01:00]} 21. Qxb6 {[%clk 0:00:28]}  axb6 {[%clk 0:00:56]} 22. Bd6 {[%clk 0:00:28]}  Bxd6 {[%clk 0:00:46]} 23. Nxd6 {[%clk 0:00:29]}  Rxc1 {[%clk 0:00:45]} 24. Rxc1 {[%clk 0:00:30]}  Ra8 {[%clk 0:00:44]} 25. g4 {[%clk 0:00:27]}  Rxa2 {[%clk 0:00:35]} 26. Bb5 {[%clk 0:00:24]}  Ne5 {[%clk 0:00:19]} 27. gxf5 {[%clk 0:00:25]}  gxf5 {[%clk 0:00:20]} 28. h3 {[%clk 0:00:21]}  Rb2 {[%clk 0:00:18]} 29. Rc7 {[%clk 0:00:18]}  Rxb4 {[%clk 0:00:18]} 30. Be8 {[%clk 0:00:18]}  Nf3+ {[%clk 0:00:13]} 31. Kg2 {[%clk 0:00:17]}  Nh4+ {[%clk 0:00:12]} 32. Kg3 {[%clk 0:00:16]}  Ng6 {[%clk 0:00:02]} 33. Bxf7+ {[%clk 0:00:16]}  Kf8 {[%clk 0:00:03]} 34. Bxe6 {[%clk 0:00:14]}  f4+ {[%clk 0:00:03]} 35. exf4 {[%clk 0:00:14]}  Nxf4 {[%clk 0:00:04]} 36. Rf7+ {[%clk 0:00:14]} 1-0


[Site "https://www.chess.com"]

[Event "Titled Tuesday Blitz August 02 Early 2022"]
[White "Mouhamad, Joachim"]
[Black "Harmon-Vellotti, Luke"]
[WhiteFideId "656410"]
[BlackFideId "2030012"]
[WhiteElo "2147"]
[BlackElo "2354"]
[Result "0-1"]
[Round "01"]
[TimeControl "180+1"]
[Date "2022.08.02"]
[WhiteClock "0:00:09"]
[BlackClock "0:01:46"]

1. e4 {[%clk 0:03:00]}  e6 {[%clk 0:02:59]} 2. d4 {[%clk 0:02:59]}  d5 {[%clk 0:03:00]} 3. Nc3 {[%clk 0:02:59]}  Bb4 {[%clk 0:03:00]} 4. e5 {[%clk 0:02:59]}  c5 {[%clk 0:03:01]} 5. a3 {[%clk 0:02:59]}  Bxc3+ {[%clk 0:03:02]} 6. bxc3 {[%clk 0:03:00]}  Ne7 {[%clk 0:03:02]} 7. Qg4 {[%clk 0:02:59]}  Qc7 {[%clk 0:03:03]} 8. Qxg7 {[%clk 0:02:59]}  Rg8 {[%clk 0:03:03]} 9. Qxh7 {[%clk 0:03:00]}  cxd4 {[%clk 0:03:04]} 10. Qd3 {[%clk 0:02:59]}  Qxe5+ {[%clk 0:03:02]} 11. Ne2 {[%clk 0:02:51]}  dxc3 {[%clk 0:03:00]} 12. Qxc3 {[%clk 0:02:52]}  Qxc3+ {[%clk 0:02:59]} 13. Nxc3 {[%clk 0:02:53]}  e5 {[%clk 0:02:59]} 14. h4 {[%clk 0:02:32]}  Bf5 {[%clk 0:02:57]} 15. Ra2 {[%clk 0:02:10]}  Nbc6 {[%clk 0:02:57]} 16. Nb5 {[%clk 0:02:04]}  Kd7 {[%clk 0:02:55]} 17. h5 {[%clk 0:01:48]}  a6 {[%clk 0:02:44]} 18. Nc3 {[%clk 0:01:47]}  Nd4 {[%clk 0:02:43]} 19. Kd1 {[%clk 0:01:44]}  Rac8 {[%clk 0:02:41]} 20. Na4 {[%clk 0:01:35]}  Bxc2+ {[%clk 0:02:34]} 21. Rxc2 {[%clk 0:01:34]}  Rxc2 {[%clk 0:02:35]} 22. Be3 {[%clk 0:01:21]}  Rc6 {[%clk 0:02:32]} 23. Bxd4 {[%clk 0:00:56]}  exd4 {[%clk 0:02:31]} 24. Nb2 {[%clk 0:00:56]}  Nf5 {[%clk 0:02:25]} 25. Bd3 {[%clk 0:00:52]}  Nh6 {[%clk 0:02:24]} 26. g3 {[%clk 0:00:52]}  Rc3 {[%clk 0:02:21]} 27. a4 {[%clk 0:00:50]}  Rgc8 {[%clk 0:02:18]} 28. Kd2 {[%clk 0:00:48]}  Rb3 {[%clk 0:02:16]} 29. Rb1 {[%clk 0:00:35]}  Kd6 {[%clk 0:02:04]} 30. f3 {[%clk 0:00:34]}  f5 {[%clk 0:01:52]} 31. Nd1 {[%clk 0:00:19]}  Rxb1 {[%clk 0:01:51]} 32. Bxb1 {[%clk 0:00:20]}  Rg8 {[%clk 0:01:51]} 33. g4 {[%clk 0:00:13]}  fxg4 {[%clk 0:01:50]} 34. fxg4 {[%clk 0:00:14]}  Rxg4 {[%clk 0:01:50]} 35. Bg6 {[%clk 0:00:11]}  Rg2+ {[%clk 0:01:48]} 36. Kd3 {[%clk 0:00:11]}  Kc5 {[%clk 0:01:46]} 37. a5 {[%clk 0:00:09]}  Ng4 {[%clk 0:01:46]} 0-1


[Site "https://www.chess.com"]

[Event "Titled Tuesday Blitz August 02 Early 2022"]
[White "Nakamura, Hikaru"]
[Black "Thorhallsson, Simon"]
[WhiteFideId "2016192"]
[BlackFideId "2310090"]
[WhiteElo "2850"]
[BlackElo "2137"]
[Result "1-0"]
[Round "01"]
[TimeControl "180+1"]
[Date "2022.08.02"]
[WhiteClock "0:01:38"]
[BlackClock "0:00:06"]

1. Nf3 {[%clk 0:03:00]}  Nf6 {[%clk 0:02:59]} 2. b3 {[%clk 0:02:59]}  e6 {[%clk 0:03:00]} 3. Bb2 {[%clk 0:02:59]}  d5 {[%clk 0:03:00]} 4. e3 {[%clk 0:02:59]}  Be7 {[%clk 0:02:58]} 5. g3 {[%clk 0:02:58]}  O-O {[%clk 0:02:58]} 6. Bg2 {[%clk 0:02:59]}  c5 {[%clk 0:02:57]} 7. O-O {[%clk 0:02:57]}  Nc6 {[%clk 0:02:57]} 8. c4 {[%clk 0:02:55]}  d4 {[%clk 0:02:56]} 9. exd4 {[%clk 0:02:51]}  cxd4 {[%clk 0:02:57]} 10. d3 {[%clk 0:02:51]}  e5 {[%clk 0:02:56]} 11. Na3 {[%clk 0:02:51]}  Re8 {[%clk 0:02:55]} 12. Nc2 {[%clk 0:02:51]}  Bf8 {[%clk 0:02:47]} 13. Re1 {[%clk 0:02:48]}  Bd7 {[%clk 0:02:28]} 14. a3 {[%clk 0:02:43]}  a5 {[%clk 0:02:27]} 15. Nd2 {[%clk 0:02:43]}  Qc8 {[%clk 0:02:23]} 16. Ne4 {[%clk 0:02:42]}  Nxe4 {[%clk 0:02:24]} 17. Bxe4 {[%clk 0:02:41]}  Bf5 {[%clk 0:02:24]} 18. Qf3 {[%clk 0:02:30]}  Bxe4 {[%clk 0:02:15]} 19. Qxe4 {[%clk 0:02:30]}  Qd8 {[%clk 0:02:02]} 20. Bc1 {[%clk 0:02:26]}  g6 {[%clk 0:01:54]} 21. Bd2 {[%clk 0:02:19]}  Bg7 {[%clk 0:01:50]} 22. b4 {[%clk 0:02:18]}  axb4 {[%clk 0:01:39]} 23. Nxb4 {[%clk 0:02:14]}  Qc7 {[%clk 0:01:07]} 24. g4 {[%clk 0:01:58]}  Ra4 {[%clk 0:00:58]} 25. g5 {[%clk 0:01:53]}  Rea8 {[%clk 0:00:57]} 26. Rab1 {[%clk 0:01:51]}  Rxa3 {[%clk 0:00:56]} 27. Nd5 {[%clk 0:01:51]}  Qd8 {[%clk 0:00:54]} 28. Rxb7 {[%clk 0:01:50]}  Ra2 {[%clk 0:00:52]} 29. Bc1 {[%clk 0:01:50]}  Ra1 {[%clk 0:00:50]} 30. h4 {[%clk 0:01:50]}  Rb8 {[%clk 0:00:15]} 31. Rc7 {[%clk 0:01:46]}  Rbb1 {[%clk 0:00:14]} 32. Rxc6 {[%clk 0:01:43]}  Rxc1 {[%clk 0:00:14]} 33. Rxc1 {[%clk 0:01:44]}  Rxc1+ {[%clk 0:00:14]} 34. Kg2 {[%clk 0:01:45]}  Bf8 {[%clk 0:00:14]} 35. Qf3 {[%clk 0:01:41]}  Kh8 {[%clk 0:00:08]} 36. Qxf7 {[%clk 0:01:40]}  Bg7 {[%clk 0:00:07]} 37. Re6 {[%clk 0:01:38]}  Qg8 {[%clk 0:00:06]} 38. Re8 {[%clk 0:01:38]} 1-0


[Site "https://www.chess.com"]

[Event "Titled Tuesday Blitz August 02 Early 2022"]
[White "Sargissyan, Sargis"]
[Black "Oparin, Grigoriy"]
[WhiteFideId "13303210"]
[BlackFideId "24125890"]
[WhiteElo "2174"]
[BlackElo "2639"]
[Result "0-1"]
[Round "01"]
[TimeControl "180+1"]
[Date "2022.08.02"]
[WhiteClock "0:00:05"]
[BlackClock "0:01:27"]

1. e4 {[%clk 0:02:59]}  c6 {[%clk 0:02:59]} 2. Nc3 {[%clk 0:02:58]}  d5 {[%clk 0:03:00]} 3. Nf3 {[%clk 0:02:59]}  dxe4 {[%clk 0:02:58]} 4. Nxe4 {[%clk 0:02:58]}  Nf6 {[%clk 0:02:59]} 5. Qe2 {[%clk 0:02:58]}  Na6 {[%clk 0:02:59]} 6. b3 {[%clk 0:02:38]}  Nxe4 {[%clk 0:02:55]} 7. Qxe4 {[%clk 0:02:37]}  Qd5 {[%clk 0:02:55]} 8. Qxd5 {[%clk 0:02:25]}  cxd5 {[%clk 0:02:56]} 9. Ne5 {[%clk 0:02:14]}  Nc7 {[%clk 0:02:52]} 10. d4 {[%clk 0:02:06]}  f6 {[%clk 0:02:49]} 11. Nf3 {[%clk 0:02:04]}  Bf5 {[%clk 0:02:49]} 12. c4 {[%clk 0:02:03]}  e6 {[%clk 0:02:46]} 13. Be2 {[%clk 0:02:00]}  dxc4 {[%clk 0:02:35]} 14. Bxc4 {[%clk 0:01:56]}  Be4 {[%clk 0:02:25]} 15. O-O {[%clk 0:01:56]}  Bxf3 {[%clk 0:02:23]} 16. gxf3 {[%clk 0:01:56]}  Kd7 {[%clk 0:02:24]} 17. Bf4 {[%clk 0:01:46]}  Bd6 {[%clk 0:02:24]} 18. Bg3 {[%clk 0:01:37]}  a6 {[%clk 0:02:24]} 19. Rfe1 {[%clk 0:01:31]}  Rac8 {[%clk 0:02:20]} 20. Kf1 {[%clk 0:01:24]}  Rhe8 {[%clk 0:02:17]} 21. Bd3 {[%clk 0:01:02]}  g6 {[%clk 0:02:03]} 22. h4 {[%clk 0:00:57]}  Nd5 {[%clk 0:01:57]} 23. Rac1 {[%clk 0:00:52]}  Ba3 {[%clk 0:01:55]} 24. Rc4 {[%clk 0:00:45]}  b5 {[%clk 0:01:55]} 25. Rxc8 {[%clk 0:00:44]}  Rxc8 {[%clk 0:01:56]} 26. h5 {[%clk 0:00:44]}  f5 {[%clk 0:01:53]} 27. hxg6 {[%clk 0:00:42]}  hxg6 {[%clk 0:01:54]} 28. Be5 {[%clk 0:00:43]}  Bd6 {[%clk 0:01:48]} 29. a4 {[%clk 0:00:15]}  Rc3 {[%clk 0:01:43]} 30. Be2 {[%clk 0:00:15]}  Rxb3 {[%clk 0:01:42]} 31. axb5 {[%clk 0:00:16]}  axb5 {[%clk 0:01:43]} 32. Ra1 {[%clk 0:00:16]}  Bxe5 {[%clk 0:01:39]} 33. dxe5 {[%clk 0:00:16]}  Nf4 {[%clk 0:01:39]} 34. Rd1+ {[%clk 0:00:13]}  Kc6 {[%clk 0:01:38]} 35. Rd6+ {[%clk 0:00:13]}  Kc5 {[%clk 0:01:39]} 36. Ke1 {[%clk 0:00:09]}  Rb1+ {[%clk 0:01:38]} 37. Bd1 {[%clk 0:00:09]}  Rb2 {[%clk 0:01:36]} 38. Rd8 {[%clk 0:00:07]}  b4 {[%clk 0:01:36]} 39. Ba4 {[%clk 0:00:06]}  Re2+ {[%clk 0:01:29]} 40. Kf1 {[%clk 0:00:05]}  Ra2 {[%clk 0:01:28]} 41. Bb3 {[%clk 0:00:05]}  Rb2 {[%clk 0:01:27]} 0-1


[Site "https://www.chess.com"]

[Event "Titled Tuesday Blitz August 02 Early 2022"]
[White "Sevian, Samuel"]
[Black "Mortazavi, Ali"]
[WhiteFideId "2040506"]
[BlackFideId "401323"]
[WhiteElo "2692"]
[BlackElo "2339"]
[Result "1/2-1/2"]
[Round "01"]
[TimeControl "180+1"]
[Date "2022.08.02"]
[WhiteClock "0:01:21"]
[BlackClock "0:00:21"]

1. b3 {[%clk 0:02:58]}  b6 {[%clk 0:02:59]} 2. Bb2 {[%clk 0:02:58]}  Bb7 {[%clk 0:03:00]} 3. e3 {[%clk 0:02:58]}  e6 {[%clk 0:03:01]} 4. Nf3 {[%clk 0:02:58]}  Nf6 {[%clk 0:03:01]} 5. Be2 {[%clk 0:02:59]}  c5 {[%clk 0:03:02]} 6. c4 {[%clk 0:02:59]}  Qc7 {[%clk 0:03:02]} 7. d4 {[%clk 0:02:59]}  cxd4 {[%clk 0:03:01]} 8. exd4 {[%clk 0:02:59]}  d6 {[%clk 0:03:02]} 9. Nc3 {[%clk 0:02:58]}  a6 {[%clk 0:03:03]} 10. Rc1 {[%clk 0:02:58]}  Nbd7 {[%clk 0:03:03]} 11. d5 {[%clk 0:02:59]}  e5 {[%clk 0:03:03]} 12. h4 {[%clk 0:02:57]}  g6 {[%clk 0:02:55]} 13. Nd2 {[%clk 0:02:55]}  h5 {[%clk 0:02:42]} 14. Nde4 {[%clk 0:02:55]}  Bh6 {[%clk 0:02:41]} 15. Rc2 {[%clk 0:02:55]}  O-O {[%clk 0:02:38]} 16. Bc1 {[%clk 0:02:52]}  Bg7 {[%clk 0:02:36]} 17. g3 {[%clk 0:02:48]}  Rae8 {[%clk 0:02:22]} 18. O-O {[%clk 0:02:46]}  Bc8 {[%clk 0:02:19]} 19. b4 {[%clk 0:02:46]}  Nxe4 {[%clk 0:02:01]} 20. Nxe4 {[%clk 0:02:47]}  f5 {[%clk 0:01:44]} 21. Ng5 {[%clk 0:02:46]}  Nf6 {[%clk 0:01:44]} 22. Ba3 {[%clk 0:02:43]}  f4 {[%clk 0:01:29]} 23. c5 {[%clk 0:02:42]}  Bf5 {[%clk 0:01:23]} 24. Rc1 {[%clk 0:02:32]}  bxc5 {[%clk 0:01:22]} 25. bxc5 {[%clk 0:02:31]}  Qa5 {[%clk 0:01:21]} 26. Bb2 {[%clk 0:02:26]}  fxg3 {[%clk 0:01:10]} 27. fxg3 {[%clk 0:02:25]}  Ng4 {[%clk 0:01:01]} 28. Rf3 {[%clk 0:01:58]}  Qxa2 {[%clk 0:00:50]} 29. Qb3 {[%clk 0:01:37]}  Qxb3 {[%clk 0:00:45]} 30. Rxb3 {[%clk 0:01:38]}  Rb8 {[%clk 0:00:45]} 31. Rxb8 {[%clk 0:01:38]}  Rxb8 {[%clk 0:00:45]} 32. Ba3 {[%clk 0:01:38]}  Rb3 {[%clk 0:00:40]} 33. cxd6 {[%clk 0:01:30]}  Rxg3+ {[%clk 0:00:39]} 34. Kf1 {[%clk 0:01:30]}  Rxa3 {[%clk 0:00:36]} 35. Ne6 {[%clk 0:01:30]}  Ne3+ {[%clk 0:00:20]} 36. Kg1 {[%clk 0:01:30]}  Nxd5 {[%clk 0:00:20]} 37. Rc8+ {[%clk 0:01:27]}  Kh7 {[%clk 0:00:20]} 38. Ng5+ {[%clk 0:01:21]}  Kh6 {[%clk 0:00:19]} 39. Nf7+ {[%clk 0:01:21]}  Kh7 {[%clk 0:00:20]} 40. Ng5+ {[%clk 0:01:22]}  Kh6 {[%clk 0:00:20]} 41. Nf7+ {[%clk 0:01:20]}  Kh7 {[%clk 0:00:21]} 42. Ng5+ {[%clk 0:01:21]} 1/2-1/2


[Site "https://www.chess.com"]